fUST/lending_fUST_20260118
["ID","MTS","AMOUNT","RATE_DAILY","PERIOD"]
[402364347,1768665650500,-241.89622822,9.102e-05,2]
[402364348,1768665652739,-300.0,9.102e-05,2]
[402364349,1768665654844,-168.66691581,9.102e-05,2]
[402364350,1768665657027,-199.47,9.102e-05,2]
[402364351,1768665708309,170.45,8.803e-05,2]
[402364352,1768665780624,159.61,8.594e-05,2]
[402364354,1768665815861,-191.53,8.937e-05,2]
[402364355,1768665815886,-137.69266926,9.02e-05,2]
[402364356,1768665843057,5000.0,8.931e-05,2]
[402364357,1768665851120,156.35,8.689e-05,2]
[402364358,1768665861065,-97.01067469,9.02e-05,2]
[402364359,1768665861099,-165.35761095,9.037e-05,2]
[402364360,1768665866085,5000.0,8.931e-05,2]
[402364361,1768665889917,5000.0,8.931e-05,2]
[402364362,1768665913118,5000.0,8.931e-05,2]
[402364363,1768665921774,152.58,8.673e-05,2]
[402364364,1768665936852,5000.0,8.931e-05,2]
[402364365,1768665959430,5000.0,8.931e-05,2]
[402364366,1768665983409,4946.9790782,8.931e-05,2]
[402364412,1768666232680,-230.59373045,9.122e-05,2]
[402364413,1768666232694,-548.0,9.122e-05,2]
[402364414,1768666232708,-171.44,9.706e-05,2]
[402364415,1768666232723,-200.01,0.00010079,2]
[402364416,1768666232736,-500.0,0.000104,2]
[402364417,1768666232749,-228.59,0.00010453,2]
[402364418,1768666232763,-40.80650905,0.00010826,2]
[402364419,1768666232778,-216.35349095,0.00010826,2]
[402364420,1768666232791,-272.10060193,0.00011122,2]
[402364421,1768666232803,-285.73,0.00011199,2]
[402364422,1768666232815,-721.73760017,0.00012329,2]
[402364423,1768666232846,-101.11239983,0.00012329,2]
[402364424,1768666232858,-300.0,0.00012918,2]
[402364425,1768666232870,-102.96590712,0.00012918,2]
[402364426,1768666232885,-197.03409288,0.00012918,2]
[402364427,1768666232897,-1200.0,0.00012918,2]
[402364428,1768666232909,-500.0,0.00012918,2]
[402364429,1768666232921,-326.99133763,0.00012918,2]
[402364430,1768666232934,-500.0,0.00012918,2]
[402364431,1768666232946,-272.57510405,0.00012918,2]
[402364432,1768666232958,-68881.96556892,0.00012919,2]
[402364433,1768666232986,-2859.76356748,0.00012919,2]
[402364480,1768666238439,-500.0,0.00012918,2]
[402364538,1768666238933,-500.0,0.00012918,2]
[402364542,1768666238969,-485.67731641,0.00012918,2]
[402364549,1768666239035,-14.32268359,0.00012918,2]
[402364551,1768666239044,-500.0,0.00012918,2]
[402364553,1768666239054,-30.46827428,0.00012918,2]
[402364556,1768666239069,-469.53172572,0.00012918,2]
[402364558,1768666239079,-500.0,0.00012918,2]
[402364560,1768666239090,-594.37229497,0.00012918,2]
[402364562,1768666239099,-500.0,0.00012918,2]
[402364564,1768666239108,-500.0,0.00012918,2]
[402364566,1768666239118,-500.0,0.00012918,2]
[402364568,1768666239129,-500.0,0.00012918,2]
[402364570,1768666239139,-500.0,0.00012918,2]
[402364572,1768666239148,-500.0,0.00012918,2]
[402364574,1768666239159,-500.0,0.00012918,2]
[402364576,1768666239169,-500.0,0.00012918,2]
[402364578,1768666239178,-500.0,0.00012918,2]
[402364580,1768666239190,-500.0,0.00012918,2]
[402364582,1768666239199,-500.0,0.00012918,2]
[402364584,1768666239209,-339.52117137,0.00012918,2]
[402364586,1768666239219,-500.0,0.00012918,2]
[402364588,1768666239228,-500.0,0.00012918,2]
[402364590,1768666239238,-500.0,0.00012918,2]
[402364592,1768666239247,-500.0,0.00012918,2]
[402364594,1768666239257,-500.0,0.00012918,2]
[402364596,1768666239266,-500.0,0.00012918,2]
[402364598,1768666239276,-500.0,0.00012918,2]
[402364600,1768666239285,-500.0,0.00012918,2]
[402364602,1768666239295,-350.28892251,0.00012918,2]
[402364604,1768666239308,-500.0,0.00012918,2]
[402364606,1768666239318,-500.0,0.00012918,2]
[402364608,1768666239327,-500.0,0.00012918,2]
[402364610,1768666239337,-928258.2708636,0.00012919,2]
[402364612,1768666239347,-243.0,0.00013017,2]
[402364613,1768666239357,-49053.84476413,0.00013018,2]
[402364615,1768666239366,-4294.2864846,0.00013022,2]
[402364617,1768666239375,-313.60747341,0.00013122,2]
[402364619,1768666239386,-320.575,0.00013199,2]
[402364621,1768666239395,-184.6720251,0.00013267,2]
[402364623,1768666239405,-184.67202506,0.00013527,2]
[402364625,1768666239415,-902.40450551,0.00013687,2]
[402364627,1768666239424,-3606.008404,0.00013687,2]
[402364629,1768666239433,-594.139183,0.00013699,2]
[402364631,1768666239442,-184.67202506,0.00013788,2]
[402364633,1768666239452,-100000.0,0.00014006,2]
[402364635,1768666239461,-184.67202506,0.00014048,2]
[402364637,1768666239470,-4294.2864846,0.00014279,2]
[402364639,1768666239479,-184.67202506,0.00014308,2]
[402364641,1768666239489,-895.26375129,0.00014408,2]
[402364643,1768666239499,-3577.47395014,0.00014408,2]
[402364645,1768666239508,-5000.0,0.0001451,2]
[402364647,1768666239518,-355.1143449,0.00015122,2]
[402364649,1768666239527,-198.33930279,0.000154,2]
[402364651,1768666239536,-4294.2864846,0.00015535,2]
[402364653,1768666239546,-500.0,0.00015749,30]
[402364655,1768666239555,-1409.0,0.00015936,2]
[402364657,1768666239569,-1409.0,0.00015937,2]
[402364659,1768666239578,-1409.0,0.00015944,2]
[402364661,1768666239587,-1409.0,0.00016008,2]
[402364663,1768666239596,-1409.0,0.00016083,2]
[402364665,1768666239606,-1041.66666667,0.00016158,2]
[402364667,1768666239615,-1409.0,0.00016254,2]
[402364669,1768666239624,-2536.3933408,0.00016292,2]
[402364671,1768666239633,-1409.0,0.00016299,2]
[402364673,1768666239643,-1409.0,0.00016307,2]
[402364675,1768666239652,-500.0,0.00016336,2]
[402364677,1768666239661,-251.72783748,0.00016336,2]
[402364679,1768666239671,-200.0,0.00016336,2]
[402364681,1768666239681,-500.0,0.00016336,2]
[402364683,1768666239690,-500.0,0.00016336,2]
[402364685,1768666239699,-154.87231411,0.00016336,2]
[402364687,1768666239709,-9877.77402111,0.00016338,2]
[402364689,1768666239719,-1409.0,0.0001637,2]
[402364691,1768666239729,-2147.0,0.00016393,2]
[402364693,1768666239738,-1367.0,0.00016393,2]
[402364695,1768666239747,-629.0,0.00016393,2]
[402364697,1768666239756,-417.0,0.00016393,2]
[402364699,1768666239766,-715.0,0.00016393,2]
[402364701,1768666239775,-199.164,0.00016393,2]
[402364703,1768666239784,-3382.0,0.00016427,2]
[402364704,1768666239794,-3000.0,0.00016428,2]
[402364706,1768666239803,-500.0,0.00016438,3]
[402364708,1768666239813,-500.0,0.00016438,3]
[402364710,1768666239823,-500.0,0.00016438,3]
[402364713,1768666239832,-500.0,0.00016438,3]
[402364714,1768666239842,-355.86142499,0.00016438,3]
[402364716,1768666239851,-500.0,0.00016438,3]
[402364718,1768666239861,-963.35,0.00016438,3]
[402364720,1768666239870,-257.23483558,0.00016438,3]
[402364722,1768666239880,-500.0,0.00016438,3]
[402364724,1768666239889,-500.0,0.00016438,3]
[402364726,1768666239898,-474.92477012,0.00016438,3]
[402364728,1768666239908,-500.0,0.00016438,3]
[402364730,1768666239917,-500.0,0.00016438,3]
[402364732,1768666239927,-500.0,0.00016438,3]
[402364734,1768666239937,-500.0,0.00016438,3]
[402364736,1768666239946,-159.17857658,0.00016438,3]
[402364738,1768666239956,-500.0,0.00016438,3]
[402364740,1768666239966,-500.0,0.00016438,3]
[402364742,1768666239975,-574.969696,0.00016438,3]
[402364744,1768666239985,-500.0,0.00016438,3]
[402364746,1768666239994,-541.31799653,0.00016438,3]
[402364748,1768666240005,-1495.44,0.00016438,3]
[402364750,1768666240014,-500.0,0.00016438,3]
[402364752,1768666240023,-500.0,0.00016438,3]
[402364755,1768666240032,-500.0,0.00016438,3]
[402364758,1768666240041,-500.0,0.00016438,3]
[402364761,1768666240051,-724.78,0.00016438,3]
[402364764,1768666240061,-500.0,0.00016438,3]
[402364767,1768666240070,-500.0,0.00016438,3]
[402364770,1768666240079,-500.0,0.00016438,3]
[402364773,1768666240089,-500.0,0.00016438,3]
[402364775,1768666240099,-500.0,0.00016438,3]
[402364777,1768666240108,-512.89,0.00016438,3]
[402364779,1768666240118,-500.0,0.00016438,3]
[402364781,1768666240127,-842.64,0.00016438,3]
[402364783,1768666240136,-752.53,0.00016438,3]
[402364785,1768666240145,-703.81,0.00016438,3]
[402364786,1768666240155,-500.0,0.00016438,3]
[402364789,1768666240165,-500.0,0.00016438,3]
[402364790,1768666240176,-500.0,0.00016438,3]
[402364792,1768666240186,-500.0,0.00016438,3]
[402364795,1768666240196,-1561.63,0.00016438,3]
[402364797,1768666240206,-500.0,0.00016438,3]
[402364799,1768666240215,-684.89,0.00016438,3]
[402364801,1768666240224,-500.0,0.00016438,3]
[402364803,1768666240233,-500.0,0.00016438,3]
[402364805,1768666240243,-500.0,0.00016438,3]
[402364807,1768666240251,-796.94,0.00016438,3]
[402364808,1768666240260,-500.0,0.00016438,3]
[402364810,1768666240270,-500.0,0.00016438,3]
[402364812,1768666240280,-500.0,0.00016438,3]
[402364815,1768666240289,-505.46,0.00016438,3]
[402364816,1768666240299,-500.0,0.00016438,3]
[402364819,1768666240313,-1475.16,0.00016438,3]
[402364820,1768666240325,-500.0,0.00016438,3]
[402364823,1768666240334,-500.0,0.00016438,3]
[402364825,1768666240343,-500.0,0.00016438,3]
[402364826,1768666240354,-500.0,0.00016438,3]
[402364828,1768666240364,-500.0,0.00016438,3]
[402364830,1768666240373,-500.0,0.00016438,3]
[402364833,1768666240385,-500.0,0.00016438,3]
[402364835,1768666240395,-529.4766639,0.00016438,3]
[402364836,1768666240407,-500.0,0.00016438,3]
[402364838,1768666240417,-500.0,0.00016438,3]
[402364841,1768666240427,-577.49,0.00016438,3]
[402364842,1768666240437,-500.0,0.00016438,3]
[402364845,1768666240447,-646.61,0.00016438,3]
[402364846,1768666240457,-500.0,0.00016438,3]
[402364849,1768666240467,-500.0,0.00016438,3]
[402364850,1768666240477,-500.0,0.00016438,3]
[402364853,1768666240487,-865.17,0.00016438,3]
[402364854,1768666240496,-500.0,0.00016438,3]
[402364856,1768666240506,-500.0,0.00016438,3]
[402364858,1768666240515,-500.0,0.00016438,3]
[402364860,1768666240525,-500.0,0.00016438,3]
[402364862,1768666240535,-302.42547068,0.00016438,3]
[402364864,1768666240545,-828.34,0.00016438,3]
[402364866,1768666240555,-500.0,0.00016438,3]
[402364868,1768666240564,-500.0,0.00016438,3]
[402364870,1768666240574,-500.0,0.00016438,3]
[402364872,1768666240584,-500.0,0.00016438,3]
[402364874,1768666240594,-1222.68,0.00016438,3]
[402364876,1768666240604,-500.0,0.00016438,3]
[402364878,1768666240614,-887.83,0.00016438,3]
[402364880,1768666240624,-595.68293991,0.00016438,3]
[402364882,1768666240633,-500.0,0.00016438,3]
[402364884,1768666240643,-500.0,0.00016438,3]
[402364886,1768666240652,-500.0,0.00016438,3]
[402364888,1768666240661,-877.3,0.00016438,3]
[402364890,1768666240671,-615.2,0.00016438,3]
[402364892,1768666240679,-500.0,0.00016438,3]
[402364894,1768666240690,-500.0,0.00016438,3]
[402364896,1768666240701,-500.0,0.00016438,3]
[402364898,1768666240711,-500.0,0.00016438,3]
[402364900,1768666240720,-500.0,0.00016438,3]
[402364902,1768666240729,-500.0,0.00016438,3]
[402364904,1768666240739,-500.0,0.00016438,3]
[402364906,1768666240748,-500.0,0.00016438,3]
[402364908,1768666240758,-1000.0,0.00016438,2]
[402364910,1768666240767,-500.0,0.00016438,3]
[402364912,1768666240776,-500.0,0.00016438,3]
[402364914,1768666240786,-500.0,0.00016438,3]
[402364916,1768666240794,-238.33114,0.00016438,3]
[402364918,1768666240804,-500.0,0.00016438,3]
[402364921,1768666240815,-500.0,0.00016438,3]
[402364922,1768666240824,-500.0,0.00016438,3]
[402364924,1768666240833,-500.0,0.00016438,3]
[402364927,1768666240843,-500.0,0.00016438,3]
[402364929,1768666240853,-500.0,0.00016438,3]
[402364931,1768666240866,-500.0,0.00016438,3]
[402364933,1768666240875,-500.0,0.00016438,3]
[402364935,1768666240886,-500.0,0.00016438,3]
[402364937,1768666240895,-500.0,0.00016438,3]
[402364939,1768666240905,-1766.91,0.00016438,3]
[402364941,1768666240915,-500.0,0.00016438,3]
[402364943,1768666240924,-1080.1,0.00016438,3]
[402364945,1768666240934,-500.0,0.00016438,3]
[402364947,1768666240944,-500.0,0.00016438,3]
[402364949,1768666240954,-500.0,0.00016438,3]
[402364951,1768666240964,-500.0,0.00016438,3]
[402364953,1768666240973,-500.0,0.00016438,3]
[402364955,1768666240983,-500.0,0.00016438,3]
[402364957,1768666240992,-652.36,0.00016438,3]
[402364959,1768666241001,-500.0,0.00016438,3]
[402364961,1768666241010,-726.94,0.00016438,3]
[402364963,1768666241020,-500.0,0.00016438,3]
[402364965,1768666241030,-500.0,0.00016438,3]
[402364967,1768666241039,-500.0,0.00016438,3]
[402364969,1768666241049,-1112.3,0.00016438,3]
[402364971,1768666241058,-541.25,0.00016438,3]
[402364973,1768666241067,-297.32226087,0.00016438,3]
[402364975,1768666241078,-500.0,0.00016438,3]
[402364977,1768666241087,-500.0,0.00016438,3]
[402364979,1768666241097,-1021.99,0.00016438,3]
[402364981,1768666241107,-1046.44,0.00016438,3]
[402364983,1768666241116,-500.0,0.00016438,3]
[402364985,1768666241125,-1361.22,0.00016438,3]
[402364987,1768666241136,-500.0,0.00016438,3]
[402364989,1768666241145,-500.0,0.00016438,3]
[402364991,1768666241156,-500.0,0.00016438,3]
[402364993,1768666241167,-713.04,0.00016438,3]
[402364995,1768666241177,-500.0,0.00016438,3]
[402364997,1768666241186,-500.0,0.00016438,3]
[402364999,1768666241195,-500.0,0.00016438,3]
[402365001,1768666241204,-390.63830152,0.00016438,3]
[402365003,1768666241213,-500.0,0.00016438,3]
[402365005,1768666241223,-500.0,0.00016438,3]
[402365007,1768666241234,-500.0,0.00016438,3]
[402365009,1768666241244,-500.0,0.00016438,3]
[402365011,1768666241254,-1084.68,0.00016438,3]
[402365013,1768666241264,-1027.03,0.00016438,3]
[402365015,1768666241273,-555.99,0.00016438,3]
[402365017,1768666241283,-500.0,0.00016438,3]
[402365019,1768666241294,-741.63,0.00016438,3]
[402365021,1768666241305,-589.12,0.00016438,3]
[402365023,1768666241319,-500.0,0.00016438,3]
[402365025,1768666241328,-523.94812621,0.00016438,3]
[402365027,1768666241338,-500.0,0.00016438,3]
[402365029,1768666241349,-500.0,0.00016438,3]
[402365031,1768666241359,-500.0,0.00016438,3]
[402365033,1768666241369,-500.0,0.00016438,3]
[402365035,1768666241380,-500.0,0.00016438,3]
[402365037,1768666241390,-500.0,0.00016438,3]
[402365039,1768666241400,-500.0,0.00016438,3]
[402365040,1768666241410,-500.0,0.00016438,3]
[402365041,1768666241420,-500.0,0.00016438,3]
[402365042,1768666241429,-500.0,0.00016438,3]
[402365043,1768666241439,-696.83,0.00016438,3]
[402365044,1768666241450,-500.0,0.00016438,3]
[402365045,1768666241460,-500.0,0.00016438,3]
[402365046,1768666241470,-1478.02,0.00016438,3]
[402365047,1768666241480,-500.0,0.00016438,3]
[402365048,1768666241490,-500.0,0.00016438,3]
[402365049,1768666241500,-500.0,0.00016438,3]
[402365050,1768666241509,-577.61,0.00016438,3]
[402365051,1768666241519,-500.0,0.00016438,3]
[402365052,1768666241529,-892.62,0.00016438,3]
[402365053,1768666241538,-500.0,0.00016438,3]
[402365054,1768666241549,-1558.04,0.00016438,3]
[402365055,1768666241558,-500.0,0.00016438,3]
[402365056,1768666241567,-500.0,0.00016438,3]
[402365057,1768666241577,-500.0,0.00016438,3]
[402365058,1768666241586,-500.0,0.00016438,3]
[402365059,1768666241596,-500.0,0.00016438,3]
[402365060,1768666241606,-558.48,0.00016438,3]
[402365061,1768666241616,-885.26,0.00016438,3]
[402365062,1768666241627,-680.93,0.00016438,3]
[402365063,1768666241636,-500.0,0.00016438,3]
[402365064,1768666241646,-675.8,0.00016438,3]
[402365066,1768666241656,-500.0,0.00016438,3]
[402365068,1768666241665,-332.20654885,0.00016438,3]
[402365130,1768666242276,-167.79345115,0.00016438,3]
[402365132,1768666242286,-242.39654885,0.00016438,3]
[402365134,1768666242298,-337.97345115,0.00016438,3]
[402365136,1768666242311,-222.75563324,0.00016438,3]
[402365140,1768666242335,-628.40436676,0.00016438,3]
[402365142,1768666242344,-258.29483324,0.00016438,3]
[402365144,1768666242357,-241.70516676,0.00016438,3]
[402365146,1768666242366,-500.0,0.00016438,3]
[402365148,1768666242375,-500.0,0.00016438,3]
[402365150,1768666242385,-500.0,0.00016438,3]
[402365152,1768666242394,-241.01887756,0.00016438,3]
[402365184,1768666242698,-406.12030593,0.00013267,2]
[402365296,1768666243467,-93.87969407,0.00013267,2]
[402365298,1768666243478,-258.98112244,0.00016438,3]
[402365300,1768666243487,-123.72918349,0.00016438,3]
[402365303,1768666243499,-376.27081651,0.00016438,3]
[402365305,1768666243509,-1146.83,0.00016438,3]
[402365309,1768666243518,-500.0,0.00016438,3]
[402365313,1768666243528,-1170.94,0.00016438,3]
[402365315,1768666243537,-500.0,0.00016438,3]
[402365316,1768666243547,-783.03,0.00016438,3]
[402365318,1768666243557,-1758.17,0.00016438,3]
[402365321,1768666243567,-500.0,0.00016438,3]
[402365323,1768666243576,-1485.71,0.00016438,3]
[402365326,1768666243586,-1493.04,0.00016438,3]
[402365330,1768666243595,-872.32,0.00016438,3]
[402365331,1768666243605,-500.0,0.00016438,3]
[402365334,1768666243615,-500.0,0.00016438,3]
[402365336,1768666243624,-500.07551483,0.00016438,3]
[402365338,1768666243634,-1265.32,0.00016438,3]
[402365340,1768666243643,-688.38,0.00016438,3]
[402365342,1768666243653,-776.68,0.00016438,3]
[402365344,1768666243663,-500.0,0.00016438,3]
[402365346,1768666243672,-500.0,0.00016438,3]
[402365348,1768666243682,-620.95,0.00016438,3]
[402365350,1768666243691,-500.0,0.00016438,3]
[402365352,1768666243701,-500.0,0.00016438,3]
[402365354,1768666243712,-500.0,0.00016438,3]
[402365356,1768666243722,-464.64297087,0.00016438,3]
[402365358,1768666243732,-767.96,0.00016438,3]
[402365360,1768666243742,-500.0,0.00016438,3]
[402365362,1768666243752,-637.66379622,0.00016438,3]
[402365364,1768666243762,-500.0,0.00016438,3]
[402365366,1768666243772,-500.0,0.00016438,3]
[402365368,1768666243782,-903.32,0.00016438,3]
[402365370,1768666243792,-500.0,0.00016438,3]
[402365372,1768666243802,-638.31,0.00016438,3]
[402365374,1768666243812,-500.0,0.00016438,3]
[402365376,1768666243822,-500.0,0.00016438,3]
[402365378,1768666243832,-2060.64,0.00016438,3]
[402365380,1768666243842,-500.0,0.00016438,3]
[402365383,1768666243852,-500.0,0.00016438,3]
[402365385,1768666243862,-500.0,0.00016438,3]
[402365387,1768666243873,-500.0,0.00016438,3]
[402365389,1768666243883,-1259.67,0.00016438,3]
[402365391,1768666243893,-500.0,0.00016438,3]
[402365393,1768666243902,-500.0,0.00016438,3]
[402365395,1768666243913,-500.0,0.00016438,3]
[402365397,1768666243923,-500.0,0.00016438,3]
[402365399,1768666243932,-687.27,0.00016438,3]
[402365401,1768666243943,-500.0,0.00016438,3]
[402365403,1768666243954,-739.43,0.00016438,3]
[402365405,1768666243963,-564.27,0.00016438,3]
[402365407,1768666243974,-500.0,0.00016438,3]
[402365409,1768666243983,-500.0,0.00016438,3]
[402365411,1768666243993,-500.0,0.00016438,3]
[402365413,1768666244003,-741.4,0.00016438,3]
[402365415,1768666244013,-500.0,0.00016438,3]
[402365418,1768666244022,-500.0,0.00016438,2]
[402365419,1768666244032,-500.0,0.00016438,3]
[402365421,1768666244042,-500.0,0.00016438,3]
[402365423,1768666244052,-500.0,0.00016438,3]
[402365426,1768666244064,-500.0,0.00016438,3]
[402365428,1768666244073,-500.0,0.00016438,3]
[402365430,1768666244083,-500.0,0.00016438,3]
[402365432,1768666244092,-500.0,0.00016438,3]
[402365434,1768666244102,-500.0,0.00016438,3]
[402365436,1768666244111,-500.0,0.00016438,3]
[402365438,1768666244121,-500.0,0.00016438,3]
[402365440,1768666244130,-527.73,0.00016438,3]
[402365442,1768666244139,-500.0,0.00016438,3]
[402365444,1768666244149,-500.0,0.00016438,3]
[402365446,1768666244158,-511.58,0.00016438,3]
[402365448,1768666244168,-500.0,0.00016438,3]
[402365450,1768666244179,-434.42539661,0.00016438,3]
[402365452,1768666244194,-65.57460339,0.00016438,3]
[402365454,1768666244203,-500.0,0.00016438,3]
[402365456,1768666244212,-500.0,0.00016438,3]
[402365458,1768666244221,-106.93337463,0.00016438,3]
[402365461,1768666244233,-393.06662537,0.00016438,3]
[402365463,1768666244243,-107.09889463,0.00016438,3]
[402365465,1768666244254,-392.90110537,0.00016438,3]
[402365467,1768666244264,-500.0,0.00016438,3]
[402365469,1768666244273,-500.0,0.00016438,3]
[402365471,1768666244283,-500.0,0.00016438,3]
[402365473,1768666244293,-500.0,0.00016438,3]
[402365475,1768666244308,-500.0,0.00016438,3]
[402365478,1768666244318,-500.0,0.00016438,3]
[402365480,1768666244327,-500.0,0.00016438,3]
[402365482,1768666244337,-500.0,0.00016438,3]
[402365484,1768666244347,-500.0,0.00016438,3]
[402365486,1768666244357,-500.0,0.00016438,3]
[402365488,1768666244369,-143.17078491,0.00016438,3]
[402365490,1768666244387,-356.82921509,0.00016438,3]
[402365492,1768666244396,-1394.22,0.00016438,3]
[402365494,1768666244406,-500.0,0.00016438,3]
[402365496,1768666244415,-500.0,0.00016438,3]
[402365498,1768666244425,-690.51,0.00016438,3]
[402365500,1768666244435,-258.44078574,0.00016438,3]
[402365720,1768666246578,-241.55921426,0.00016438,3]
[402365722,1768666246587,-235.48604431,0.00016438,3]
[402368030,1768667432451,-5000.0,0.00010901,2]
[402368031,1768667432462,-2480.9457684,0.00011011,2]
[402368033,1768667432472,-211.6155792,0.00011067,2]
[402368034,1768667432482,-2207.85058422,0.00011234,2]
[402368036,1768667432492,-300.0,0.00011691,2]
[402368037,1768667432501,-4841.8835921,0.00011932,2]
[402368038,1768667432510,-293.151,0.00012563,2]
[402368040,1768667432520,-103277.7344695,0.00012719,2]
[402368042,1768667432536,-720.0,0.00012719,2]
[402368043,1768667432549,-1077.32915382,0.00012719,2]
[402368286,1768667438601,-228.89393634,0.00012718,2]
[402368288,1768667438610,-500.0,0.00012718,2]
[402368289,1768667438620,-390.80257283,0.00012718,2]
[402368291,1768667438631,-500.0,0.00012718,2]
[402368292,1768667438640,-371.05790793,0.00012718,2]
[402368293,1768667438650,-351.15922381,0.00012718,2]
[402368295,1768667438662,-148.84077619,0.00012718,2]
[402368296,1768667438672,-500.0,0.00012718,2]
[402368298,1768667438681,-500.0,0.00012718,2]
[402368299,1768667438691,-500.0,0.00012718,2]
[402368300,1768667438702,-300.0,0.00012718,2]
[402368302,1768667438711,-205.58765806,0.00012718,2]
[402368303,1768667438721,-55504.1252442,0.00012719,2]
[402368305,1768667438738,-839420.81113248,0.00012719,2]
[402368306,1768667438748,-2073.09761353,0.00012818,2]
[402368308,1768667438757,-420.0,0.00012838,2]
[402368319,1768667439064,-2683.92905291,0.000129,2]
[402368320,1768667439087,-249.70638346,0.00013067,2]
[402368321,1768667439103,-500.0,0.00013273,2]
[402368322,1768667439124,-1000.0,0.00013699,2]
[402368323,1768667439139,-500.0,0.00013699,2]
[402368324,1768667439149,-1000.0,0.00013821,2]
[402368325,1768667439159,-2683.92905287,0.00013958,2]
[402368326,1768667439169,-90348.55459878,0.00014006,2]
[402368327,1768667439179,-587.0,0.00014098,2]
[402368328,1768667439189,-1000.0,0.00014247,2]
[402368329,1768667439199,-160.25739123,0.00014508,2]
[402368330,1768667439209,-5042.19085868,0.0001451,2]
[402368331,1768667439222,-1500.0,0.00014795,2]
[402368332,1768667439232,-403.96853636,0.000149,2]
[402368333,1768667439242,-403.96853636,0.000149,2]
[402368334,1768667439251,-403.96853636,0.000149,2]
[402368335,1768667439260,-1019.31790572,0.00015,2]
[402368336,1768667439269,-35372.70144397,0.00015,2]
[402368337,1768667439280,-287.79718771,0.00015067,2]
[402368338,1768667439290,-237.456034,0.00015068,2]
[402368339,1768667439300,-2683.92905287,0.00015177,2]
[402368340,1768667439310,-298.82547295,0.000154,2]
[402368341,1768667439319,-444.94858251,0.000154,2]
[402368342,1768667439329,-160.25739123,0.00015443,2]
[402368343,1768667439339,-606.0,0.00015481,2]
[402368344,1768667439348,-180.10446059,0.00015637,2]
[402368345,1768667439358,-151.0,0.00015969,2]
[402368346,1768667439368,-30000.0,0.00015969,2]
[402368347,1768667439377,-151.0,0.00015969,2]
[402368348,1768667439389,-300.73,0.00015969,2]
[402368349,1768667439398,-151.0,0.00015969,2]
[402368350,1768667439408,-151.0,0.00015969,2]
[402368351,1768667439417,-445.202766,0.00015969,2]
[402368352,1768667439426,-151.0,0.00015969,2]
[402368353,1768667439436,-151.0,0.00015969,2]
[402368355,1768667439447,-151.0,0.00015969,2]
[402368356,1768667439456,-151.0,0.00015969,2]
[402368358,1768667439468,-151.0,0.00015969,2]
[402368359,1768667439478,-201.18700456,0.00015969,2]
[402368361,1768667439487,-151.0,0.00015969,2]
[402368362,1768667439496,-193.25034379,0.00015969,2]
[402368363,1768667439506,-151.0,0.00015969,2]
[402368365,1768667439516,-151.0,0.00015969,2]
[402368366,1768667439526,-2150.738,0.00015969,2]
[402368368,1768667439536,-250.0,0.00015969,2]
[402368369,1768667439546,-250.0,0.00015969,2]
[402368370,1768667439555,-250.0,0.00015969,2]
[402368372,1768667439564,-151.0,0.00015969,2]
[402368373,1768667439574,-162.380719,0.00015969,2]